Cogmind - Beta 14 @@@ ROGUE MODE // 2025.03.13 @ 21:03:47 Player: Skergy Result: Destroyed by D-53 Grenadier with Mini Grenade Launcher Performance ------------- Evolutions (0) 0 Regions Visited (3) 600 Robots Destroyed (32) 160 Value Destroyed (929) 929 Prototype IDs (0) 0 Alien Tech Used (0) 0 Bonus (0) 0 TOTAL SCORE: 1689 Bonus ------- None Cogmind --------- Core Integrity 0/250 Matter 284/300 Energy 106/125 System Corruption 0% Temperature Cool (34) Movement Rolling (200) Ox8 Location -9/Recycling Parts ------- > --- POWER (1) -------- Light Ion Engine > --- PROPULSION (2) --- Spiked Treads Wheel > --- UTILITY (2) ------ Huge Storage Unit > --- WEAPON (2) ------- Riot Gun Battle Rifle > --- INVENTORY (25) --- Subdweller Power Source Light Treads Aluminum Leg Aluminum Leg Flight Unit Flight Unit High-capacity Storage Unit Signal Interpreter Scrap Shield Subdweller Beam Cannon Subdweller Beam Cannon Shotgun Battle Rifle Battle Rifle Subdweller Machine Gun Subdweller Machine Gun Subdweller Machine Gun Subdweller Shrapnel Launcher Subdweller Shrapnel Launcher Datajack Makeshift Hammer Peak State ------------ > --- POWER ------------ Light Ion Engine > --- PROPULSION ------- Wheel Subdweller Monowheel > --- UTILITY ---------- Huge Storage Unit Makeshift Light Armor Plating > --- WEAPON ----------- Battle Rifle Makeshift Hammer > --- INVENTORY -------- Subdweller Power Source Light Treads Spiked Treads Aluminum Leg Aluminum Leg Wheel Flight Unit Flight Unit High-capacity Storage Unit Signal Interpreter Scrap Shield Riot Gun Subdweller Beam Cannon Subdweller Beam Cannon Shotgun Battle Rifle Battle Rifle Subdweller Machine Gun Subdweller Machine Gun Subdweller Machine Gun Battle Cannon Subdweller Shrapnel Launcher Subdweller Shrapnel Launcher Datajack [Rating: 19] Favorites ----------- Power Light Ion Engine Engine Light Ion Engine Power Core Light Nuclear Core Propulsion Light Treads Treads Light Treads Wheel Subdweller Monowheel Utility Huge Storage Unit Storage Huge Storage Unit Processor Targeting Computer Protection Makeshift Light Armor Plating Weapon Assault Rifle Energy Gun Riot Gun Ballistic Gun Assault Rifle Ballistic Cannon Battle Cannon Launcher Subdweller Shrapnel Launcher Impact Weapon Makeshift Hammer Slashing Weapon Mining Claw Special Melee Weapon Datajack Build | -11 -10 -10 -9 ------- Run | Yrd Mat Sub Rec Slots Evolved . | . . . . Power . | . . . . Propulsion . | . . . . Utility . | . . . . Weapon . | . . . . Parts Attached 51 | 6 11 31 3 Power 6 | 1 1 4 . Engine 5 | 1 . 4 . Core 1 | . 1 . . Reactor . | . . . . Propulsion 13 | 2 . 10 1 Treads 6 | 2 . 3 1 Leg . | . . . . Wheel 7 | . . 7 . Hover . | . . . . Flight . | . . . . Utility 8 | 1 5 2 . Device . | . . . . Storage 4 | 1 3 . . Processor 2 | . 2 . . Hackware . | . . . . Protection 2 | . . 2 . Artifact . | . . . . Weapon 24 | 2 5 15 2 Energy Gun 1 | . . . 1 Energy Cannon . | . . . . Ballistic Gun 8 | 2 3 3 . Ballistic Cannon 5 | . . 4 1 Launcher 3 | . . 3 . Special Weapon . | . . . . Impact Weapon 1 | . . 1 . Slashing Weapon 4 | . . 4 . Piercing Weapon . | . . . . Special Melee Weapon 2 | . 2 . . Unidentified Prototypes . | . . . . Parts Lost 16 | . 4 10 2 Power 2 | . . 2 . Propulsion 6 | . . 5 1 Utility 1 | . . 1 . Weapon 7 | . 4 2 1 Highest Loss Streak 4 | . 2 4 1 To Critical Strikes . | . . . . Average Slot Usage (%) 98 | . 99 98 97 Engine 9 | . 4 12 14 Core 4 | . 9 1 . Treads 15 | . 28 6 2 Wheel 12 | . . 20 25 Storage 16 | . 19 14 14 Processor 4 | . 8 1 . Protection 7 | . . 12 11 Ballistic Gun 18 | . 24 14 14 Ballistic Cannon 2 | . . 2 13 Slashing Weapon 3 | . . 7 . Special Melee Weapon 1 | . 3 . . Peak Build Rating 19 | 6 12 19 17 Average Rating 12 | 4 9 14 15 On Entrance 8 | . 6 10 18 Naked Turns . | . . . . Heaviest Build 103 | 14 89 103 92 Greatest Support 40 | 40 40 40 20 Greatest Overweight (x) 8 | 1 2 4 8 Average Overweight (x) 2 | . 1 2 4 Largest Inventory Capacity 25 | 8 25 25 25 Average Capacity 22 | 7 20 25 25 Most Carried 25 | 4 16 25 24 Average Carried 18 | 2 12 23 23 Final Capacity 25 | 8 25 25 25 Final Carried 24 | 4 16 24 22 Class Distribution -------------------- 89% | Mutant 10% | Derelict-Mutant Dominant Class ---------------- Mutant | -10/Materials Mutant | -10/Subcaves Mutant | -9/Recycling Resources | -11 -10 -10 -9 ----------- Run | Yrd Mat Sub Rec Matter Collected 1304 | 236 400 582 86 Remotely . | . . . . Salvage Created 1180 | . 442 250 488 Parts 64 | . 34 15 15 Haulers Intercepted . | . . . . Recyclers Shooed 1 | . 1 . . Parts Field Recycled . | . . . . Retrieved Matter . | . . . . Parts Self-Destructed 3 | . . 3 . Prevented . | . . . . Kills | -11 -10 -10 -9 ------- Run | Yrd Mat Sub Rec Combat Hostiles Destroyed 25 | . 11 9 5 Melee 2 | . . 2 . Guns 15 | . 11 1 3 Cannons 5 | . . 3 2 AOE 3 | . . 3 . Classes Destroyed 10 | . 5 1 4 Worker 1 | . 1 . . Recycler 2 | . . . 2 Operator 1 | . 1 . . Watcher 3 | . 3 . . Swarmer 5 | . 3 2 . Grunt 8 | . 8 . . Duelist 1 | . . . 1 Sentry 3 | . . . 3 Hunter 1 | . . . 1 Subdweller 7 | . . 7 . Best Kill Streak 6 | . 4 2 6 Combat Bots Only 4 | . 3 2 4 Max Kills in Single Turn 2 | . 1 1 2 Gunslinging . | . . . . Exploded 1 | . . 1 . Melee 1 | . . 1 . Uniques/NPCs Destroyed . | . . . . Combat | -11 -10 -10 -9 -------- Run | Yrd Mat Sub Rec Hostile Shots Fired 165 | . 86 62 17 Missed 45 | . 27 14 4 Damage Taken 2180 | . 650 1213 317 Core 267 | . 137 70 60 Absorbed by Shields . | . . . . Core Remaining (%) 100 | 100 . . . Volleys Fired 90 | . 53 27 10 Largest 2 | . 2 2 2 Hottest 80 | . 43 80 75 Shots Fired 161 | . 89 52 20 Gun 134 | . 89 34 11 Cannon 20 | . . 11 9 Launcher 7 | . . 7 . Special . | . . . . Kinetic 160 | . 89 52 19 Thermal . | . . . . Explosive . | . . . . Electromagnetic 1 | . . . 1 Robot Hit Streak 12 | . 12 10 7 Robot Miss Streak 4 | . 4 3 4 Penetration Max . | . . . . Secondary Targets 2 | . 2 . . Max Gunslinging Chain 1 | . 1 . . Shots Hit Robots 133 | . 70 54 9 Core Hits 53 | . 28 12 13 Critical Kills . | . . . . Critical Parts Destroyed . | . . . . Critical Strikes . | . . . . Melee Attacks 45 | . 7 38 . Impact 1 | . . 1 . Slashing 37 | . . 37 . Piercing . | . . . . Sneak Attacks 6 | . 6 . . Combat Hostiles . | . . . . Follow-up Attacks . | . . . . Damage Inflicted 2349 | . 888 1056 405 Guns 1123 | . 888 104 131 Cannons 306 | . . 144 162 Explosions 564 | . . 460 104 Melee 348 | . . 348 . Ramming 8 | . . . 8 Kinetic 1871 | . 888 708 275 Thermal 104 | . . . 104 Explosive . | . . . . Electromagnetic 18 | . . . 18 Impact . | . . . . Slashing 348 | . . 348 . Piercing . | . . . . Highest Corruption . | . . . . Average Corruption . | . . . . Corruption Purged . | . . . . Corruption Blocked . | . . . . Overload Shots . | . . . . Overflow Damage 19 | . . 1 18 Projectiles 12 | . . . 12 Explosions 7 | . . 1 6 Melee . | . . . . Knockbacks 1 | . . 1 . Impact . | . . . . Kinetic 1 | . . 1 . Secondary . | . . . . Self-Inflicted Damage 48 | . . 44 4 Shots 1 | . . 1 . Rammed 1 | . . . 1 Targets Rammed 1 | . . . 1 Kicked . | . . . . Crushed . | . . . . Highest Temperature 96 | . 3 . 96 Average Temperature 34 | . 2 . 44 Received Heat Transfer 444 | . 318 108 18 Siege Activations . | . . . . Robots Corrupted . | . . . . Combat Hostiles . | . . . . Parts Fried . | . . . . Impact Corruptions . | . . . . Robots Melted . | . . . . Combat Hostiles . | . . . . Parts Melted . | . . . . Heat Transferred 150 | . . . 150 Parts Sabotaged . | . . . . Parts Stolen . | . . . . Parts Stripped . | . . . . Power Chain Reactions 1 | . . . 1 Alert | -11 -10 -10 -9 ------- Run | Yrd Mat Sub Rec Peak Influence 122 | . 122 . 105 Initial . | . . . . Average 35 | . 38 . 26 Maximum Alert Level . | . . . . Low Security (%) 100 | 100 100 . 100 Level 1 . | . . . . Level 2 . | . . . . Level 3 . | . . . . Level 4 . | . . . . Level 5 . | . . . . High Security . | . . . . Max Security . | . . . . Squads Dispatched 3 | . 3 . . Investigation 1 | . 1 . . Extermination . | . . . . Reinforcement 2 | . 2 . . Assault . | . . . . Garrison . | . . . . Intercept . | . . . . Searches Triggered . | . . . . Construction Impeded . | . . . . Haulers Reinforced . | . . . . Active Scanning Responses . | . . . . Cargo Convoy Interrupts . | . . . . Stealth | -11 -10 -10 -9 --------- Run | Yrd Mat Sub Rec Distress Signals 1 | . 1 . . Communications Jammed . | . . . . Distress Signals . | . . . . Times Spotted 39 | . 21 13 5 Peak Tracking Total 6 | . 6 4 5 Tactical Retreats 1 | . . 1 . Traps | -11 -10 -10 -9 ------- Run | Yrd Mat Sub Rec Traps Triggered 6 | . 1 5 . Indirectly . | . . . . Trap Hack Attempts . | . . . . Triggered . | . . . . Disarmed . | . . . . Reprogrammed . | . . . . Reused . | . . . . Traps Extracted . | . . . . Installed . | . . . . Triggered . | . . . . Machines | -11 -10 -10 -9 ---------- Run | Yrd Mat Sub Rec Machines Disabled . | . . . . Max in Single Turn . | . . . . Machines Repaired . | . . . . Machines Dismantled . | . . . . Machines Sabotaged . | . . . . Overloaded Fab Kills . | . . . . Hacking | -11 -10 -10 -9 --------- Run | Yrd Mat Sub Rec Machines Accessed 7 | . 5 1 1 Terminals 5 | . 4 . 1 Fabricators . | . . . . Repair Stations . | . . . . Recycling Units 1 | . 1 . . Scanalyzers . | . . . . Garrison Access . | . . . . Total Hacks 23 | . 16 4 3 Successful 13 | . 7 4 2 Failed 10 | . 9 . 1 Catastrophic 2 | . 2 . . Database Lockouts . | . . . . Manual 13 | . 11 . 2 Terminals 15 | . 12 . 3 Fabricators . | . . . . Repair Stations . | . . . . Recycling Units 4 | . 4 . . Scanalyzers . | . . . . Garrison Access . | . . . . Terminal Hacks 6 | . 1 4 1 Record 4 | . . 4 . Unreport Threat 1 | . 1 . . Zone Layout 1 | . . . 1 Fabricator Hacks . | . . . . Repair Station Hacks . | . . . . Recycling Unit Hacks 2 | . 2 . . Report Inventory 1 | . 1 . . Retrieve Components 1 | . 1 . . Scanalyzer . | . . . . Garrison Access Hacks . | . . . . Unauthorized Hacks 5 | . 4 . 1 Terminals 4 | . 3 . 1 Assimilate 1 | . 1 . . Botnet 3 | . 2 . 1 Fabricators . | . . . . Repair Stations . | . . . . Recycling Units 1 | . 1 . . Reject 1 | . 1 . . Scanalyzers . | . . . . Garrison Access . | . . . . Data Cores Recovered . | . . . . Used . | . . . . Hacking Detections 6 | . 5 . 1 Full Trace Events . | . . . . Feedback Events . | . . . . Feedback Blocked . | . . . . Robot Schematics Acquired . | . . . . Robots Built . | . . . . Authchips . | . . . . Time . | . . . . Total Robot Build Rating . | . . . . Part Schematics Acquired . | . . . . Parts Built . | . . . . Authchips . | . . . . Time . | . . . . Total Part Build Rating . | . . . . Parts Repaired . | . . . . Time . | . . . . Parts Recycled . | . . . . Recycled Matter . | . . . . Retrieved Matter . | . . . . Retrieved Components 6 | . 6 . . Parts Scanalyzed . | . . . . Part Schematics Acquired . | . . . . Parts Damaged . | . . . . Bothacking | -11 -10 -10 -9 ------------ Run | Yrd Mat Sub Rec Used RIF Installer . | . . . . Robots Hacked 3 | . 3 . . Non-combat 3 | . 3 . . Combat . | . . . . Robot Hacks Applied 6 | . 6 . . parse_system 2 | . 2 . . no_distress 3 | . 3 . . find_recycling 1 | . 1 . . Relay Couplers Released . | . . . . Fabnet Peak Effective % . | . . . . Robots Rewired . | . . . . Allies Hacked . | . . . . Hacks Repelled . | . . . . Allies | -11 -10 -10 -9 -------- Run | Yrd Mat Sub Rec Total Allies . | . . . . Largest Group . | . . . . Highest-Rated Group . | . . . . Highest-Rated Ally . | . . . . Total Orders . | . . . . Ally Attacks . | . . . . Total Damage . | . . . . Kills . | . . . . Allies Corrupted . | . . . . Allies Melted . | . . . . Intel | -11 -10 -10 -9 ------- Run | Yrd Mat Sub Rec Robot Analysis Total . | . . . . Derelict Logs Recovered 1 | . . 1 . Drone Launches . | . . . . Drone Recoveries . | . . . . Exploration | -11 -10 -10 -9 ------------- Run | Yrd Mat Sub Rec Turns Passed 3999 | 71 1697 1981 250 Spaces Moved 1931 | 35 612 1137 147 Core 11 | 11 . . . Treads 742 | 24 612 106 . Legs . | . . . . Wheels 1178 | . . 1031 147 Hover . | . . . . Flight . | . . . . Fastest Speed 50 | 50 160 130 140 Average Speed 180 | 132 247 151 143 Slowest Speed 340 | 160 320 340 200 Overloaded Moves . | . . . . Propulsion Burnouts . | . . . . Robots Hopped . | . . . . Cave-ins Triggered . | . . . . Exploration Rate (%) 49 | 3 85 73 38 Regions Visited 3 Branch Regions 2 Pre-discovered Areas 2 | . . 2 . Known Exits Taken 1 | . . 1 . Unknown Exits Taken 2 | 1 1 . . Scrap Searched 18 | . . 18 . Spaces Dug 1 | . . 1 . Terrain Destroyed 69 | . . 64 5 Melee 1 | . . 1 . Projectile . | . . . . AOE 68 | . . 63 5 Terrain Rammed . | . . . . Walls Destroyed . | . . . . Machines Disabled . | . . . . Actions | -11 -10 -10 -9 --------- Run | Yrd Mat Sub Rec Total 2196 | 57 703 1270 166 Wait 20 | 13 1 1 5 Move 1928 | 34 611 1136 147 Hop . | . . . . Pick Up 39 | 4 14 21 . Fast Attach 17 | 6 4 7 . Attach 17 | . 4 11 2 Detach 9 | . 3 6 . Swap 17 | . 3 13 1 Drop 13 | . 3 10 . Fire 90 | . 53 27 10 Melee 45 | . 7 38 . Ram 1 | . . . 1 Kick . | . . . . Crush . | . . . . Escape Stasis . | . . . . Rewire . | . . . . Trap . | . . . . Miscellaneous . | . . . . Route ------- -11/Scrapyard -10/Materials (discovered 5 exits: [*Mat x3] / [*Min] / *Sub) -10/Subcaves -9/Recycling History --------- Turn | Location | Event 5 | -11/Scrapyard | Discovered new exit (range 15) 72 | -11/Scrapyard | Entered Materials 313 | -10/Materials | Build established: Mutant 318 | -10/Materials | Discovered new exit (range 11) 697 | -10/Materials | Discovered new exit (range 15) 702 | -10/Materials | Discovered new exit (range 12) 788 | -10/Materials | Discovered new exit (range 15) 1040 | -10/Materials | Core integrity fell below 50% 1746 | -10/Materials | Discovered new exit (range 10) 1769 | -10/Materials | Entered Subcaves 1904 | -10/Subcaves | Disturbed a concealed Subdweller 1972 | -10/Subcaves | Lost 3 parts (1p2n) 2156 | -10/Subcaves | Visited Clippyterm 2167 | -10/Subcaves | Identified exit to Recycling 2167 | -10/Subcaves | Learned Factory fabricator intel 2294 | -10/Subcaves | Disturbed a concealed Subdweller 2554 | -10/Subcaves | Lost 4 parts (1p1n1u1w) 2920 | -10/Subcaves | Core integrity fell below 20% 3055 | -10/Subcaves | Shifting Twisted Machinery released Sub. Machine Gun 3076 | -10/Subcaves | Shifting Twisted Machinery released Riot Gun 3124 | -10/Subcaves | Build established: Derelict-Mutant 3166 | -10/Subcaves | Learned location of Zion (-7) 3166 | -10/Subcaves | Met a Zionite searching for "candidates" 3200 | -10/Subcaves | Shifting Twisted Machinery released Battle Rifle 3209 | -10/Subcaves | Shifting Twisted Machinery released Sub. Laser 3251 | -10/Subcaves | Shifting Twisted Machinery released Scrap Shield 3511 | -10/Subcaves | Build established: Mutant 3544 | -10/Subcaves | Learned location of Recycling (-9) 3750 | -10/Subcaves | Entered Recycling 4000 | -9/Recycling | Destroyed by D-53 Grenadier with Mini Grenade Launcher Last Messages --------------- 03980_ R-06 Scavenger collects Tractor Beam. 03982_ R-06 Scavenger collects Heat Sink. 03982_ R-06 Scavenger collects Lgt. Armor Plating. 03992_ Battle Cannon destroyed. 03992_ K-01 Serf destroyed. 03992_ R-06 Scavenger destroyed. 03993_ U-05 Engineer lays Concrete. 03994_ R-06 Scavenger destroyed. 03994_ U-05 Engineer destroyed. 03994_ U-05 Engineer lays Concrete. 03994_ U-05 Engineer builds a Wall. 03995_ U-05 Engineer lays Concrete. 03997_ R-06 Scavenger collects Lgt. Ion Engine. 03998_ Y-45 Defender destroyed. 03998_ U-05 Engineer destroyed. 03998_ Chain reaction triggered in Imp. Ion Engine. 03998_ Y-45 Defender destroyed. 03998_ D-53 Grenadier destroyed. 03998_ Destroyed Mining Laser. 03998_ U-05 Engineer lays Concrete. Map ----- +----------------------------------------------------+ | ?????????????????????????????????????????????????? | | ?????????????????????????????????????????????????? | | ?????????????????????????????????????????????????? | | ?????????????????????????????????????????????????? | | ?????????????????????????????????????????????????? | | ?????????????????????????????????????????????????? | | ????????????????????????## ###???????????????????? | | ???????????????????????? #???????????????????? | | ???????????????????????? #???????????????????? | | ???????????????????????? T ????????????????????? | | ???????????????????????? ????????????????????? | | ???????????????????????? ????????????????????? | | ????????????????????????# #????????????????????? | | ????????????????????????# #????????????????????? | | ????????????????????????# #????????????????????? | | ????????????????????????# #????????????????????? | | ????????????????????????# #????????????????????? | | #??????????????########?# #????????????????????? | | ??????????????#; t = # #????????????????????? | | #?????????????#; [ Y # #????????????????????? | | #?????????????#; %= g! # #????????????????????? | | #?????????????#;%[ ! #% ###??????????????????? | | #??############; l%] ! #=% ""#??????????????????? | | #??# #?# [ =|%uY"#??????????????????? | | #??# #?# a=%!% r ""#??????????????????? | | #?## #?# = d%@ ##???? ???????????? | | #?# #?# b ! ###???? ???????????? | | #?## ### !% ""#???# ???????????? | | #??# ## % %[%Y"#???# #??????????? | | #??# ####### #==!""#???# #??????????? | | #??# #?????#####!= ###???# #??????????? | | #########+############### ####### #??????????? | | #??????????? | | +??????????? | | T #??????????? | | ######## #############u##### #??????????? | | #?# #?????# #?# #??????????? | | #?# #?????# #?# #??????????? | | #?# """ #?????# ### #??????????? | | #?# """ #?????# # #??????????? | | ### """ #?????# # #??????????? | | ## ####### # #+##+#?????? | | ### + # ###???? | | #?# """ # # ""#???? | | #?# """ ##+##+##### Y"#???? | | ####+### """ ""#???? | | ###???? | | ######## % #?????? | | ???????##########%#####!!!###########%%%####?????? | | ????????????????###???#!!!#?????????#%%%#????????? | +----------------------------------------------------+ Best States ------------- Heat Dissipation 25 Energy Generation 15 Energy Capacity 250 Matter Stores 300 Matter Capacity 300 Sight Range 18 Terrain Scan Density 10 Armor Coverage 150 Evasion (%) 40 Targeting Accuracy 5 Recoil Reduction 2 Item Schematics ----------------- None Robot Schematics ------------------ None Fabricated ------------ Nothing Alien Tech Used ----------------- None Achievements -------------- None Challenges ------------ None Game ------ Seed MultinovaActiveObliterator Manual? 0 Play Time 00:28:57 Cumulative 71.2 hours Start 2025.03.13 @ 20:31:24 End 2025.03.13 @ 21:03:47 Sessions 1 Manual Loads 0 Difficulty Rogue Special Mode None Game No. 75 Rogue 75 Adventurer 0 Explorer 0 Win Type - Total 2 Types 2/0/0/0/0/0/0/0/0 Lore% 42 Gallery% 45 Achievement% 40 Wizard Run 0 Options --------- Layout 0 ASCII 0 Keyboard 1 Movement Numpad Keybinds 0 Fullscreen 1 Font 24/Terminus Map View 76x50 Zoom Use 0% Tactical HUD 1 Map Filters NONE Filters NONE Steam 1 RUN: 98986488-fef9-4587-8933-1d6c4c8d5b18